[Event "Late-Titled-Tuesday-Blitz-September-26-2023"]
[Site "Chess.com"]
[Date "2023.09.26"]
[Round "5"]
[White "angryspacevoid"]
[Black "KaydenTroffChess"]
[Result "1-0"]
[WhiteElo "2518"]
[BlackElo "2762"]
[TimeControl "180+1"]
[EndTime "14:54:46 PDT"]
[Termination "angryspacevoid won by resignation"]

1. e4 {[%clk 0:03:00.9]} 1... c5 {[%clk 0:02:57.9]} 2. c3 {[%clk 0:03:00]} 2...
g6 {[%clk 0:02:57.9]} 3. d4 {[%clk 0:02:58.8]} 3... cxd4 {[%clk 0:02:58.8]} 4.
cxd4 {[%clk 0:02:59.5]} 4... d5 {[%clk 0:02:58.8]} 5. Bb5+ {[%clk 0:03:00.1]}
5... Nc6 {[%clk 0:02:55.8]} 6. Nc3 {[%clk 0:02:58.8]} 6... a6 {[%clk 0:02:47]}
7. Ba4 {[%clk 0:02:48.7]} 7... Nf6 {[%clk 0:02:21.5]} 8. e5 {[%clk 0:02:17.1]}
8... Nh5 {[%clk 0:01:56.3]} 9. Be3 {[%clk 0:01:51.6]} 9... Ng7 {[%clk
0:01:49.1]} 10. Rc1 {[%clk 0:01:24.7]} 10... e6 {[%clk 0:01:27.2]} 11. Nf3
{[%clk 0:01:15.5]} 11... Bd7 {[%clk 0:01:25.8]} 12. a3 {[%clk 0:01:04.3]} 12...
Nf5 {[%clk 0:01:16.9]} 13. O-O {[%clk 0:00:58.8]} 13... h5 {[%clk 0:01:14.4]}
14. Qd2 {[%clk 0:00:44.2]} 14... Be7 {[%clk 0:01:03.6]} 15. Bc2 {[%clk
0:00:43.7]} 15... Rc8 {[%clk 0:00:48]} 16. Rfd1 {[%clk 0:00:37.1]} 16... Na5
{[%clk 0:00:38.9]} 17. Qe2 {[%clk 0:00:22.4]} 17... Nc4 {[%clk 0:00:35.8]} 18.
Bd3 {[%clk 0:00:21.1]} 18... Ncxe3 {[%clk 0:00:26.4]} 19. fxe3 {[%clk 0:00:21]}
19... Bg5 {[%clk 0:00:23.3]} 20. e4 {[%clk 0:00:17.4]} 20... Bxc1 {[%clk
0:00:18.2]} 21. exf5 {[%clk 0:00:13.2]} 21... Bxb2 {[%clk 0:00:18.5]} 22. Qxb2
{[%clk 0:00:12.9]} 22... gxf5 {[%clk 0:00:17.6]} 23. Ne2 {[%clk 0:00:10.2]}
23... Bc6 {[%clk 0:00:08.5]} 24. h4 {[%clk 0:00:08.4]} 24... Rg8 {[%clk
0:00:08.1]} 25. Nf4 {[%clk 0:00:08.4]} 25... Rg4 {[%clk 0:00:04.6]} 26. Nxh5
{[%clk 0:00:08.4]} 26... Kf8 {[%clk 0:00:04.8]} 27. Nf6 {[%clk 0:00:08.8]} 27...
Rg6 {[%clk 0:00:05.1]} 28. Qd2 {[%clk 0:00:09]} 28... Bb5 {[%clk 0:00:04.2]} 29.
Bxb5 {[%clk 0:00:08.4]} 29... axb5 {[%clk 0:00:05.1]} 30. h5 {[%clk 0:00:08.8]}
30... Rxf6 {[%clk 0:00:05.8]} 31. exf6 {[%clk 0:00:09.6]} 31... Qxf6 {[%clk
0:00:06.5]} 32. Ne5 {[%clk 0:00:10.3]} 32... Kg7 {[%clk 0:00:06.1]} 33. Qf4
{[%clk 0:00:08.9]} 33... Rg8 {[%clk 0:00:06]} 34. Rd3 {[%clk 0:00:08.7]} 34...
Kh7 {[%clk 0:00:06.3]} 35. Rg3 {[%clk 0:00:09.1]} 35... Rxg3 {[%clk 0:00:06]}
36. Qxg3 {[%clk 0:00:10]} 36... f4 {[%clk 0:00:06.7]} 37. Qd3+ {[%clk
0:00:09.6]} 37... Kh6 {[%clk 0:00:06.7]} 38. Ng4+ {[%clk 0:00:09.2]} 1-0

[Event "Late-Titled-Tuesday-Blitz-September-26-2023"]
[Site "Chess.com"]
[Date "2023.09.26"]
[Round "5"]
[White "dzilleruelo"]
[Black "elpatodice"]
[Result "0-1"]
[WhiteElo "2308"]
[BlackElo "2456"]
[TimeControl "180+1"]
[EndTime "14:54:48 PDT"]
[Termination "elpatodice won by resignation"]

1. e4 {[%clk 0:03:00.9]} 1... c5 {[%clk 0:02:57.1]} 2. Nf3 {[%clk 0:03:01.1]}
2... d6 {[%clk 0:02:54.2]} 3. d4 {[%clk 0:03:01.2]} 3... cxd4 {[%clk 0:02:54.7]}
4. Qxd4 {[%clk 0:03:01.9]} 4... Nf6 {[%clk 0:02:55.4]} 5. Be2 {[%clk 0:03:01.6]}
5... Nc6 {[%clk 0:02:51]} 6. Qe3 {[%clk 0:03:01.6]} 6... g6 {[%clk 0:02:41.5]}
7. h3 {[%clk 0:03:00.9]} 7... Bg7 {[%clk 0:02:41.7]} 8. O-O {[%clk 0:03:01]}
8... O-O {[%clk 0:02:42.1]} 9. Rd1 {[%clk 0:03:01.7]} 9... Qa5 {[%clk
0:02:41.1]} 10. Nc3 {[%clk 0:02:55.1]} 10... Nd7 {[%clk 0:02:35.9]} 11. Bd2
{[%clk 0:02:50.5]} 11... Qb6 {[%clk 0:02:32.6]} 12. Rab1 {[%clk 0:02:38.8]}
12... Qxe3 {[%clk 0:02:29.2]} 13. Bxe3 {[%clk 0:02:39.7]} 13... Bxc3 {[%clk
0:02:14.3]} 14. bxc3 {[%clk 0:02:39.4]} 14... b6 {[%clk 0:02:13]} 15. Nd4 {[%clk
0:02:00.1]} 15... Bb7 {[%clk 0:02:10.8]} 16. f3 {[%clk 0:01:58.1]} 16... Rac8
{[%clk 0:02:09.6]} 17. Nb5 {[%clk 0:01:57.9]} 17... Nc5 {[%clk 0:02:01.5]} 18.
Kf2 {[%clk 0:01:48]} 18... Ba6 {[%clk 0:01:51.3]} 19. Rd2 {[%clk 0:01:37.2]}
19... Bxb5 {[%clk 0:01:46.2]} 20. Bxb5 {[%clk 0:01:36.8]} 20... Ne5 {[%clk
0:01:44.3]} 21. Re1 {[%clk 0:01:17.3]} 21... Rc7 {[%clk 0:01:43.7]} 22. f4
{[%clk 0:01:12.8]} 22... Nxe4+ {[%clk 0:01:43]} 23. Kf1 {[%clk 0:01:11.6]} 23...
Nxd2+ {[%clk 0:01:42.2]} 24. Bxd2 {[%clk 0:01:12.5]} 24... Nc4 {[%clk
0:01:39.1]} 25. Bxc4 {[%clk 0:01:12.3]} 25... Rxc4 {[%clk 0:01:39.2]} 26. Rxe7
{[%clk 0:01:13.2]} 26... Ra4 {[%clk 0:01:39]} 27. f5 {[%clk 0:01:12.8]} 27...
Kg7 {[%clk 0:01:32.3]} 28. Bg5 {[%clk 0:00:50.8]} 28... gxf5 {[%clk 0:01:29.1]}
29. Rd7 {[%clk 0:00:46.9]} 29... Rxa2 {[%clk 0:01:25.6]} 30. Rxd6 {[%clk
0:00:46.2]} 30... f6 {[%clk 0:01:26.2]} 31. Be3 {[%clk 0:00:44.1]} 31... Rxc2
{[%clk 0:01:23.4]} 32. Bd4 {[%clk 0:00:43.8]} 32... Kg6 {[%clk 0:01:17.4]} 33.
Rd7 {[%clk 0:00:41]} 33... Ra2 {[%clk 0:01:17]} 34. h4 {[%clk 0:00:38.1]} 34...
h5 {[%clk 0:01:15]} 35. Kg1 {[%clk 0:00:34.7]} 35... Rf7 {[%clk 0:01:03.9]} 36.
Rd5 {[%clk 0:00:34]} 36... f4 {[%clk 0:00:55.5]} 37. Kf1 {[%clk 0:00:25.9]}
37... Re7 {[%clk 0:00:30.5]} 38. Rd6 {[%clk 0:00:24.9]} 38... Rf7 {[%clk
0:00:30.3]} 39. Rd5 {[%clk 0:00:24.8]} 39... a5 {[%clk 0:00:28.6]} 40. Bxb6
{[%clk 0:00:23]} 40... a4 {[%clk 0:00:29.2]} 41. Bd4 {[%clk 0:00:23.2]} 41... a3
{[%clk 0:00:28.1]} 42. Ra5 {[%clk 0:00:23.3]} 42... Rb7 {[%clk 0:00:27.7]} 43.
Kg1 {[%clk 0:00:21]} 43... Rb1+ {[%clk 0:00:27]} 44. Kh2 {[%clk 0:00:21.1]}
44... f3 {[%clk 0:00:27.6]} 45. Kg3 {[%clk 0:00:13.9]} 45... fxg2 {[%clk
0:00:27.5]} 46. Ra6 {[%clk 0:00:10.2]} 46... g1=Q+ {[%clk 0:00:27.3]} 47. Bxg1
{[%clk 0:00:11]} 47... Rxg1+ {[%clk 0:00:27.3]} 0-1

[Event "Late-Titled-Tuesday-Blitz-September-26-2023"]
[Site "Chess.com"]
[Date "2023.09.26"]
[Round "5"]
[White "MaxLeto"]
[Black "bylavochka"]
[Result "0-1"]
[WhiteElo "2501"]
[BlackElo "2306"]
[TimeControl "180+1"]
[EndTime "14:54:49 PDT"]
[Termination "bylavochka won on time"]

1. g4 {[%clk 0:02:47.3]} 1... d5 {[%clk 0:02:53.8]} 2. Bg2 {[%clk 0:02:42.2]}
2... Bxg4 {[%clk 0:02:35.6]} 3. c4 {[%clk 0:02:37.1]} 3... c6 {[%clk 0:02:14.9]}
4. Qb3 {[%clk 0:02:31.2]} 4... e6 {[%clk 0:02:00.4]} 5. Qxb7 {[%clk 0:02:29.1]}
5... Nd7 {[%clk 0:01:58.8]} 6. Nc3 {[%clk 0:02:03.9]} 6... Ngf6 {[%clk
0:01:46.3]} 7. b3 {[%clk 0:01:42.3]} 7... Be7 {[%clk 0:01:11.8]} 8. h3 {[%clk
0:01:03.7]} 8... Bf5 {[%clk 0:01:11.1]} 9. Nf3 {[%clk 0:00:42.3]} 9... h6 {[%clk
0:00:56.6]} 10. Qxc6 {[%clk 0:00:39.7]} 10... Rc8 {[%clk 0:00:56.2]} 11. Qa4
{[%clk 0:00:39.6]} 11... dxc4 {[%clk 0:00:56.1]} 12. bxc4 {[%clk 0:00:38]} 12...
O-O {[%clk 0:00:55.9]} 13. d3 {[%clk 0:00:37.4]} 13... Nc5 {[%clk 0:00:53.7]}
14. Qc2 {[%clk 0:00:29.5]} 14... Bxd3 {[%clk 0:00:21.3]} 15. exd3 {[%clk
0:00:27.8]} 15... Nxd3+ {[%clk 0:00:22.2]} 16. Ke2 {[%clk 0:00:25.4]} 16... Nb4
{[%clk 0:00:20.6]} 17. Qb3 {[%clk 0:00:22.7]} 17... Qd3+ {[%clk 0:00:18.2]} 18.
Ke1 {[%clk 0:00:21.7]} 18... Nc2+ {[%clk 0:00:18.6]} 19. Qxc2 {[%clk 0:00:19.3]}
19... Qxc2 {[%clk 0:00:19.5]} 20. Bd2 {[%clk 0:00:20.2]} 20... Rxc4 {[%clk
0:00:18.8]} 21. Rc1 {[%clk 0:00:20.5]} 21... Qb2 {[%clk 0:00:16.1]} 22. Ne5
{[%clk 0:00:20.7]} 22... Rd4 {[%clk 0:00:14.7]} 23. Be3 {[%clk 0:00:18.3]} 23...
Rdd8 {[%clk 0:00:09.8]} 24. Nc6 {[%clk 0:00:18.2]} 24... Ba3 {[%clk 0:00:08.9]}
25. Nxd8 {[%clk 0:00:13.3]} 25... Rxd8 {[%clk 0:00:09.8]} 26. Ne2 {[%clk
0:00:08.7]} 26... Qb4+ {[%clk 0:00:09.2]} 27. Rc3 {[%clk 0:00:07.1]} 27... Bb2
{[%clk 0:00:07.9]} 28. Bd2 {[%clk 0:00:07.1]} 28... Bxc3 {[%clk 0:00:07.3]} 29.
Nxc3 {[%clk 0:00:08]} 29... Qb2 {[%clk 0:00:06.9]} 30. Nd5 {[%clk 0:00:02.1]}
30... Qb1+ {[%clk 0:00:05.4]} 31. Ke2 {[%clk 0:00:02.1]} 31... Qb5+ {[%clk
0:00:04.5]} 32. Ke1 {[%clk 0:00:01.2]} 32... Nxd5 {[%clk 0:00:05]} 33. Be4
{[%clk 0:00:01.3]} 33... Nb4 {[%clk 0:00:05.2]} 0-1

[Event "Late-Titled-Tuesday-Blitz-September-26-2023"]
[Site "Chess.com"]
[Date "2023.09.26"]
[Round "5"]
[White "ljm509"]
[Black "Chessdreamer2020"]
[Result "1-0"]
[WhiteElo "2338"]
[BlackElo "2524"]
[TimeControl "180+1"]
[EndTime "14:54:50 PDT"]
[Termination "ljm509 won by checkmate"]

1. e4 {[%clk 0:02:59.9]} 1... c5 {[%clk 0:02:59.2]} 2. Nf3 {[%clk 0:02:59.6]}
2... Nc6 {[%clk 0:02:59.8]} 3. d4 {[%clk 0:02:59.6]} 3... cxd4 {[%clk
0:03:00.7]} 4. Nxd4 {[%clk 0:03:00.5]} 4... Nf6 {[%clk 0:03:01.6]} 5. Nc3 {[%clk
0:03:00.4]} 5... e5 {[%clk 0:03:02.1]} 6. Ndb5 {[%clk 0:03:00.6]} 6... d6 {[%clk
0:03:02.6]} 7. Bg5 {[%clk 0:03:00.7]} 7... a6 {[%clk 0:03:03]} 8. Na3 {[%clk
0:03:01]} 8... b5 {[%clk 0:03:03.4]} 9. Nd5 {[%clk 0:03:01.6]} 9... Be7 {[%clk
0:03:03.9]} 10. Bxf6 {[%clk 0:03:02.3]} 10... Bxf6 {[%clk 0:03:04.8]} 11. c3
{[%clk 0:03:03.2]} 11... Bb7 {[%clk 0:03:04.1]} 12. Nc2 {[%clk 0:03:03.7]} 12...
Ne7 {[%clk 0:03:04.5]} 13. Nce3 {[%clk 0:03:03.2]} 13... Bg5 {[%clk 0:03:04.8]}
14. a4 {[%clk 0:02:44.7]} 14... Bxe3 {[%clk 0:03:01.7]} 15. Nxe3 {[%clk
0:02:44.3]} 15... Bxe4 {[%clk 0:02:54.1]} 16. axb5 {[%clk 0:02:44.2]} 16... axb5
{[%clk 0:02:54.6]} 17. Bxb5+ {[%clk 0:02:44]} 17... Kf8 {[%clk 0:02:53.6]} 18.
O-O {[%clk 0:02:39]} 18... Rb8 {[%clk 0:02:41.2]} 19. c4 {[%clk 0:02:36.9]}
19... g6 {[%clk 0:02:38.2]} 20. Ra6 {[%clk 0:02:34.6]} 20... Rb6 {[%clk
0:02:35.2]} 21. Ng4 {[%clk 0:02:13.2]} 21... Kg7 {[%clk 0:02:28]} 22. Qd2 {[%clk
0:01:32.7]} 22... h5 {[%clk 0:02:20.7]} 23. Rxb6 {[%clk 0:01:22.8]} 23... Qxb6
{[%clk 0:02:19.9]} 24. Ne3 {[%clk 0:01:17.6]} 24... Rd8 {[%clk 0:02:01.7]} 25.
Ba4 {[%clk 0:01:02.4]} 25... Rb8 {[%clk 0:01:25.1]} 26. b3 {[%clk 0:01:00.6]}
26... Qc5 {[%clk 0:01:19.1]} 27. Rd1 {[%clk 0:00:49.9]} 27... Rb6 {[%clk
0:01:19]} 28. h3 {[%clk 0:00:45.6]} 28... Nf5 {[%clk 0:01:10.8]} 29. Nxf5+
{[%clk 0:00:44.3]} 29... Bxf5 {[%clk 0:01:11.7]} 30. Kh2 {[%clk 0:00:42.4]}
30... Be6 {[%clk 0:01:08.4]} 31. f4 {[%clk 0:00:39.5]} 31... e4 {[%clk 0:01:00]}
32. Re1 {[%clk 0:00:32.5]} 32... f5 {[%clk 0:00:58.7]} 33. Qc3+ {[%clk
0:00:28.4]} 33... Kf7 {[%clk 0:00:58.6]} 34. Qh8 {[%clk 0:00:27.5]} 34... Qf2
{[%clk 0:00:58.1]} 35. Qe8+ {[%clk 0:00:22.1]} 35... Kf6 {[%clk 0:00:54.3]} 36.
Qf8+ {[%clk 0:00:16.3]} 36... Bf7 {[%clk 0:00:54.6]} 37. Be8 {[%clk 0:00:12.1]}
37... Rb7 {[%clk 0:00:48.4]} 38. Qxd6+ {[%clk 0:00:09]} 38... Kg7 {[%clk
0:00:48.8]} 39. Qe5+ {[%clk 0:00:08.2]} 39... Kg8 {[%clk 0:00:47.7]} 40. Bxf7+
{[%clk 0:00:08.2]} 40... Rxf7 {[%clk 0:00:48.6]} 41. Rd1 {[%clk 0:00:08.8]}
41... Kh7 {[%clk 0:00:44.9]} 42. Rd8 {[%clk 0:00:08.3]} 42... Rg7 {[%clk
0:00:45.4]} 43. Qb8 {[%clk 0:00:07.2]} 43... g5 {[%clk 0:00:43.2]} 44. Rh8+
{[%clk 0:00:06.5]} 44... Kg6 {[%clk 0:00:43.3]} 45. Qd6+ {[%clk 0:00:06]} 45...
Kf7 {[%clk 0:00:43.8]} 46. Qd7+ {[%clk 0:00:05.7]} 46... Kg6 {[%clk 0:00:43.8]}
47. Qe6# {[%clk 0:00:05.6]} 1-0

[Event "Late-Titled-Tuesday-Blitz-September-26-2023"]
[Site "Chess.com"]
[Date "2023.09.26"]
[Round "5"]
[White "BillieKimbah"]
[Black "bettercallcafu"]
[Result "1-0"]
[WhiteElo "2974"]
[BlackElo "2685"]
[TimeControl "180+1"]
[EndTime "14:54:54 PDT"]
[Termination "BillieKimbah won by resignation"]

1. e4 {[%clk 0:03:00.9]} 1... c5 {[%clk 0:02:59.7]} 2. Nf3 {[%clk 0:03:00.6]}
2... d6 {[%clk 0:03:00.4]} 3. Bc4 {[%clk 0:03:00.3]} 3... e6 {[%clk 0:03:00.2]}
4. O-O {[%clk 0:02:59.2]} 4... Nf6 {[%clk 0:03:00.8]} 5. d3 {[%clk 0:02:59.2]}
5... Nc6 {[%clk 0:03:01.4]} 6. c3 {[%clk 0:02:59.4]} 6... Be7 {[%clk 0:03:02]}
7. Bb3 {[%clk 0:02:59.1]} 7... d5 {[%clk 0:03:01.7]} 8. e5 {[%clk 0:02:58.4]}
8... Nd7 {[%clk 0:02:52.9]} 9. d4 {[%clk 0:02:58.7]} 9... f6 {[%clk 0:02:42.9]}
10. exf6 {[%clk 0:02:49.4]} 10... Nxf6 {[%clk 0:02:43.1]} 11. Re1 {[%clk
0:02:47.5]} 11... O-O {[%clk 0:02:41.8]} 12. Bg5 {[%clk 0:02:44.6]} 12... Qc7
{[%clk 0:02:38]} 13. Nbd2 {[%clk 0:02:42.4]} 13... cxd4 {[%clk 0:02:30.2]} 14.
cxd4 {[%clk 0:02:41.6]} 14... Bd6 {[%clk 0:02:30.5]} 15. Bh4 {[%clk 0:02:33.4]}
15... Bd7 {[%clk 0:02:30.5]} 16. Bg3 {[%clk 0:02:31.9]} 16... Rac8 {[%clk
0:02:24.7]} 17. Rc1 {[%clk 0:02:31]} 17... Bxg3 {[%clk 0:02:23.4]} 18. hxg3
{[%clk 0:02:31]} 18... Qd6 {[%clk 0:02:23.8]} 19. Nf1 {[%clk 0:02:25.8]} 19...
Be8 {[%clk 0:02:03.6]} 20. Ng5 {[%clk 0:02:15.3]} 20... Bd7 {[%clk 0:02:03.3]}
21. Ne3 {[%clk 0:02:10.2]} 21... h6 {[%clk 0:01:54.4]} 22. Nf3 {[%clk
0:02:09.8]} 22... Ne4 {[%clk 0:01:54.2]} 23. Bc2 {[%clk 0:01:41.9]} 23... Qe7
{[%clk 0:01:12.2]} 24. Ng4 {[%clk 0:01:36.1]} 24... Ng5 {[%clk 0:01:02.7]} 25.
Nfe5 {[%clk 0:01:33]} 25... Nxe5 {[%clk 0:00:56.8]} 26. Nxe5 {[%clk 0:01:33.9]}
26... Rf6 {[%clk 0:00:37.8]} 27. Qd3 {[%clk 0:01:29.2]} 27... Rcf8 {[%clk
0:00:31.8]} 28. f3 {[%clk 0:01:28.1]} 28... a6 {[%clk 0:00:28.5]} 29. Ng6 {[%clk
0:01:26.6]} 29... Qd6 {[%clk 0:00:23]} 30. Ne5 {[%clk 0:01:11.6]} 30... Bb5
{[%clk 0:00:22.1]} 31. Qd2 {[%clk 0:01:00.4]} 31... Nf7 {[%clk 0:00:20.6]} 32.
Bb1 {[%clk 0:00:58.5]} 32... Nxe5 {[%clk 0:00:19.3]} 33. Rxe5 {[%clk 0:00:58.7]}
33... Be8 {[%clk 0:00:17.1]} 34. Rce1 {[%clk 0:00:49.3]} 34... Qb6 {[%clk
0:00:17.1]} 35. Kh2 {[%clk 0:00:42.9]} 35... Bf7 {[%clk 0:00:16.7]} 36. g4
{[%clk 0:00:42.6]} 36... Rc8 {[%clk 0:00:15.8]} 37. Bd3 {[%clk 0:00:34.5]} 37...
Kh8 {[%clk 0:00:13.8]} 38. Qf2 {[%clk 0:00:32.8]} 38... Kg8 {[%clk 0:00:13.8]}
39. g5 {[%clk 0:00:31.5]} 39... hxg5 {[%clk 0:00:13.8]} 40. Rxg5 {[%clk
0:00:32.4]} 40... Rh6+ {[%clk 0:00:14.2]} 41. Kg1 {[%clk 0:00:32.7]} 41... Qd6
{[%clk 0:00:14.8]} 42. Rge5 {[%clk 0:00:29.6]} 42... Qe7 {[%clk 0:00:12.5]} 43.
Bf5 {[%clk 0:00:24.9]} 43... Qh4 {[%clk 0:00:07.8]} 44. Qxh4 {[%clk 0:00:24.4]}
44... Rxh4 {[%clk 0:00:07.6]} 45. Rxe6 {[%clk 0:00:21.4]} 45... Bxe6 {[%clk
0:00:08.5]} 46. Bxe6+ {[%clk 0:00:21.4]} 1-0

[Event "Late-Titled-Tuesday-Blitz-September-26-2023"]
[Site "Chess.com"]
[Date "2023.09.26"]
[Round "5"]
[White "rychessmaster1"]
[Black "aNaartjieZA"]
[Result "0-1"]
[WhiteElo "2713"]
[BlackElo "2610"]
[TimeControl "180+1"]
[EndTime "14:54:54 PDT"]
[Termination "aNaartjieZA won on time"]

1. d4 {[%clk 0:02:57.8]} 1... Nf6 {[%clk 0:02:59.8]} 2. c4 {[%clk 0:02:57.9]}
2... c5 {[%clk 0:03:00.1]} 3. d5 {[%clk 0:02:58]} 3... e5 {[%clk 0:03:00.4]} 4.
Nc3 {[%clk 0:02:46.9]} 4... d6 {[%clk 0:03:00.2]} 5. e4 {[%clk 0:02:43.8]} 5...
Nbd7 {[%clk 0:03:00.3]} 6. h3 {[%clk 0:02:42.6]} 6... Be7 {[%clk 0:03:00.3]} 7.
g4 {[%clk 0:02:42.2]} 7... h6 {[%clk 0:02:59.9]} 8. Nge2 {[%clk 0:02:40.7]} 8...
Nf8 {[%clk 0:02:59.9]} 9. Ng3 {[%clk 0:02:36]} 9... N6h7 {[%clk 0:02:55.2]} 10.
Nh5 {[%clk 0:02:13.5]} 10... Rg8 {[%clk 0:02:50.5]} 11. Be2 {[%clk 0:01:58.2]}
11... g6 {[%clk 0:02:47.2]} 12. Ng3 {[%clk 0:01:58.4]} 12... Bg5 {[%clk
0:02:46.8]} 13. Qd3 {[%clk 0:01:47.4]} 13... Bf4 {[%clk 0:02:43.5]} 14. h4
{[%clk 0:01:44.9]} 14... Nf6 {[%clk 0:02:30.3]} 15. Rg1 {[%clk 0:00:51.5]} 15...
Bxg4 {[%clk 0:02:21.6]} 16. Bxg4 {[%clk 0:00:49.3]} 16... Nxg4 {[%clk
0:02:21.4]} 17. h5 {[%clk 0:00:49.3]} 17... Qf6 {[%clk 0:02:03.5]} 18. Qf3
{[%clk 0:00:45.1]} 18... Nh2 {[%clk 0:01:47.4]} 19. Qg2 {[%clk 0:00:30.3]} 19...
Bxc1 {[%clk 0:01:47.3]} 20. Rxc1 {[%clk 0:00:31]} 20... Nf3+ {[%clk 0:01:47.3]}
21. Ke2 {[%clk 0:00:31.7]} 21... Nxg1+ {[%clk 0:01:47.1]} 22. Rxg1 {[%clk
0:00:32.6]} 22... Nh7 {[%clk 0:01:32.1]} 23. Nb5 {[%clk 0:00:25.2]} 23... Rd8
{[%clk 0:01:09]} 24. Nf1 {[%clk 0:00:17.2]} 24... Ng5 {[%clk 0:01:06.7]} 25.
hxg6 {[%clk 0:00:17.3]} 25... fxg6 {[%clk 0:01:06]} 26. Qg4 {[%clk 0:00:16.1]}
26... Rf8 {[%clk 0:01:00.3]} 27. Rg2 {[%clk 0:00:11.8]} 27... Qf4 {[%clk
0:00:50.7]} 28. Nc7+ {[%clk 0:00:12.1]} 28... Ke7 {[%clk 0:00:50.8]} 29. Ne3
{[%clk 0:00:06.5]} 29... Qxe4 {[%clk 0:00:37.9]} 30. Qxe4 {[%clk 0:00:05.8]}
30... Nxe4 {[%clk 0:00:38]} 31. Rxg6 {[%clk 0:00:06.6]} 31... Rxf2+ {[%clk
0:00:36.3]} 32. Ke1 {[%clk 0:00:07.3]} 32... Rf6 {[%clk 0:00:32.1]} 33. Rg7+
{[%clk 0:00:06.6]} 33... Rf7 {[%clk 0:00:32.3]} 34. Rg4 {[%clk 0:00:06.6]} 34...
Ng5 {[%clk 0:00:28.2]} 35. Ke2 {[%clk 0:00:05.2]} 35... a6 {[%clk 0:00:28]} 36.
Rh4 {[%clk 0:00:05.3]} 36... Rh8 {[%clk 0:00:20.6]} 37. Ng4 {[%clk 0:00:02.6]}
37... h5 {[%clk 0:00:20.7]} 38. Nf2 {[%clk 0:00:02.2]} 38... Kd7 {[%clk
0:00:20.7]} 39. Ne6 {[%clk 0:00:02.9]} 39... Nxe6 {[%clk 0:00:20.7]} 40. dxe6+
{[%clk 0:00:03.8]} 40... Kxe6 {[%clk 0:00:20.9]} 41. Ne4 {[%clk 0:00:04.7]}
41... Rf4 {[%clk 0:00:21.1]} 42. Ng5+ {[%clk 0:00:04.5]} 42... Kf5 {[%clk
0:00:21]} 0-1

[Event "Late-Titled-Tuesday-Blitz-September-26-2023"]
[Site "Chess.com"]
[Date "2023.09.26"]
[Round "5"]
[White "ejalmedina"]
[Black "LeninGuerra"]
[Result "1-0"]
[WhiteElo "2329"]
[BlackElo "2525"]
[TimeControl "180+1"]
[EndTime "14:54:55 PDT"]
[Termination "ejalmedina won on time"]

1. d4 {[%clk 0:02:56]} 1... Nf6 {[%clk 0:02:58.2]} 2. c4 {[%clk 0:02:55.7]} 2...
e6 {[%clk 0:02:58.3]} 3. Nc3 {[%clk 0:02:52.5]} 3... Bb4 {[%clk 0:02:58.3]} 4.
Qc2 {[%clk 0:02:53.2]} 4... c5 {[%clk 0:02:54.8]} 5. dxc5 {[%clk 0:02:52.2]}
5... O-O {[%clk 0:02:51.9]} 6. a3 {[%clk 0:02:47.2]} 6... Bxc5 {[%clk
0:02:50.5]} 7. Nf3 {[%clk 0:02:46.9]} 7... b6 {[%clk 0:02:46.6]} 8. Bg5 {[%clk
0:02:44.1]} 8... Bb7 {[%clk 0:02:45]} 9. e4 {[%clk 0:02:43.8]} 9... h6 {[%clk
0:02:41.3]} 10. Bh4 {[%clk 0:02:42.7]} 10... Be7 {[%clk 0:02:41.3]} 11. Be2
{[%clk 0:02:24.3]} 11... d6 {[%clk 0:02:40.7]} 12. O-O {[%clk 0:02:24.1]} 12...
Nbd7 {[%clk 0:02:40.5]} 13. Rad1 {[%clk 0:02:14.6]} 13... a6 {[%clk 0:02:39.8]}
14. Rd2 {[%clk 0:02:14.6]} 14... Rc8 {[%clk 0:02:35.1]} 15. Rfd1 {[%clk
0:02:10.3]} 15... Qc7 {[%clk 0:02:35]} 16. Bg3 {[%clk 0:01:33.6]} 16... Ne5
{[%clk 0:02:33.2]} 17. Nxe5 {[%clk 0:01:30.4]} 17... dxe5 {[%clk 0:02:32.3]} 18.
b4 {[%clk 0:01:30.5]} 18... Qb8 {[%clk 0:02:09.3]} 19. f3 {[%clk 0:01:27.5]}
19... a5 {[%clk 0:02:07.2]} 20. Qb2 {[%clk 0:01:23.7]} 20... axb4 {[%clk
0:02:01.1]} 21. axb4 {[%clk 0:01:23]} 21... Nh5 {[%clk 0:01:58.8]} 22. Bf2
{[%clk 0:01:20.6]} 22... Nf4 {[%clk 0:01:55.9]} 23. Bf1 {[%clk 0:01:20]} 23...
Bc6 {[%clk 0:01:50.5]} 24. b5 {[%clk 0:01:15.2]} 24... Be8 {[%clk 0:01:49.7]}
25. Na4 {[%clk 0:01:15.3]} 25... Bd8 {[%clk 0:01:06]} 26. Rd6 {[%clk 0:00:53.1]}
26... Bc7 {[%clk 0:01:00.7]} 27. Nxb6 {[%clk 0:00:51.5]} 27... Bxd6 {[%clk
0:00:45]} 28. Nxc8 {[%clk 0:00:50.4]} 28... Bc7 {[%clk 0:00:22.9]} 29. Ne7+
{[%clk 0:00:46.4]} 29... Kh7 {[%clk 0:00:23.2]} 30. b6 {[%clk 0:00:44.7]} 30...
Bd6 {[%clk 0:00:14.9]} 31. Nc8 {[%clk 0:00:44.7]} 31... Qxc8 {[%clk 0:00:11.5]}
32. Rxd6 {[%clk 0:00:44.5]} 32... f6 {[%clk 0:00:09.8]} 33. b7 {[%clk
0:00:41.2]} 33... Qb8 {[%clk 0:00:09.3]} 34. Rd8 {[%clk 0:00:37.6]} 34... Qxd8
{[%clk 0:00:05.9]} 35. b8=Q {[%clk 0:00:37.8]} 35... Qd1 {[%clk 0:00:06]} 36. g3
{[%clk 0:00:31.7]} 36... Nh3+ {[%clk 0:00:04.8]} 37. Kg2 {[%clk 0:00:31.7]}
37... Ng5 {[%clk 0:00:04.7]} 38. Be2 {[%clk 0:00:29.1]} 38... Qd7 {[%clk
0:00:03.6]} 39. Q2b7 {[%clk 0:00:23.7]} 39... Qd2 {[%clk 0:00:02.5]} 40. Qb2
{[%clk 0:00:23.1]} 40... Qd7 {[%clk 0:00:02]} 41. Q8b4 {[%clk 0:00:19.6]} 1-0